fUST/lending_fUST_20250628
["ID","MTS","AMOUNT","RATE_DAILY","PERIOD"]
[368276056,1751083854233,-584.15,0.00021643,2]
[368276057,1751083854243,-2605.1,0.00021643,2]
[368276058,1751083854252,-934.8,0.00021643,2]
[368276059,1751083854261,-554.83,0.00021643,2]
[368276060,1751083854270,-460.0,0.00021643,2]
[368276061,1751083854279,-2802.87,0.00021643,2]
[368276062,1751083854288,-460.0,0.00021643,2]
[368276063,1751083854298,-3472.72,0.00021643,2]
[368276064,1751083854308,-2124.18,0.00021643,2]
[368276065,1751083854317,-4921.64,0.00021643,2]
[368276066,1751083854327,-554.07,0.00021643,2]
[368276067,1751083854336,-497.39,0.00021643,2]
[368276068,1751083854345,-1405.03,0.00021643,2]
[368276069,1751083854453,-504.02,0.00021643,2]
[368276070,1751083854463,-460.0,0.00021643,2]
[368276071,1751083854472,-726.37,0.00021643,2]
[368276072,1751083854482,-532.64,0.00021643,2]
[368276073,1751083854491,-650.33,0.00021643,2]
[368276074,1751083854501,-1165.28,0.00021643,2]
[368276075,1751083854510,-1747.26,0.00021643,2]
[368276076,1751083854520,-460.0,0.00021643,2]
[368276077,1751083854529,-464.54,0.00021643,2]
[368276078,1751083854538,-5134.94,0.00021643,2]
[368276079,1751083854548,-460.0,0.00021643,2]
[368276080,1751083854558,-460.0,0.00021643,2]
[368276081,1751083854567,-1018.02,0.00021643,2]
[368276082,1751083854577,-929.35,0.00021643,2]
[368276083,1751083854586,-2403.87,0.00021643,2]
[368276084,1751083854595,-460.0,0.00021643,2]
[368276085,1751083854604,-711.06,0.00021643,2]
[368276086,1751083854614,-460.0,0.00021643,2]
[368276087,1751083854623,-570.68,0.00021643,2]
[368276088,1751083854633,-2231.43,0.00021643,2]
[368276089,1751083854641,-2133.39,0.00021643,2]
[368276090,1751083854651,-1223.58,0.00021643,2]
[368276091,1751083854660,-1782.38,0.00021643,2]
[368276092,1751083854669,-1231.97,0.00021643,2]
[368276093,1751083854678,-523.85,0.00021643,2]
[368276094,1751083854687,-9354.90543724,0.00021659,5]
[368276095,1751083854696,-587.0,0.00021668,2]
[368276096,1751083854706,-25000.0,0.00021669,2]
[368276097,1751083854715,-5000.0,0.00021669,2]
[368276098,1751083854724,-434.3,0.00021688,4]
[368276099,1751083854733,-151.0,0.00021728,2]
[368276100,1751083854743,-500.0,0.0002178,17]
[368276101,1751083854752,-3000.0,0.000218,2]
[368276102,1751083854762,-1000.0,0.000218,4]
[368276103,1751083854771,-1000.0,0.000218,5]
[368276104,1751083854781,-1000.0,0.000218,6]
[368276105,1751083854790,-1002.86,0.000218,7]
[368276106,1751083854799,-3000.0,0.0002181,2]
[368276107,1751083854809,-3000.0,0.0002182,2]
[368276108,1751083854819,-3000.0,0.0002183,2]
[368276109,1751083854828,-3000.0,0.0002184,2]
[368276110,1751083854837,-3000.0,0.0002185,2]
[368276111,1751083854846,-2512.32862362,0.00021858,2]
[368276112,1751083854856,-3000.0,0.0002186,2]
[368276113,1751083854865,-3000.0,0.0002187,2]
[368276114,1751083854874,-200.0,0.0002187,4]
[368276115,1751083854883,-501.4395495,0.0002188,2]
[368276116,1751083854892,-3000.0,0.0002188,2]
[368276117,1751083854902,-151.0,0.00021885,2]
[368276118,1751083854911,-151.0,0.00021885,2]
[368276119,1751083854921,-151.902895,0.00021885,2]
[368276120,1751083854930,-151.0,0.00021885,2]
[368276121,1751083854939,-151.0,0.00021885,2]
[368276122,1751083854948,-155.358054,0.00021885,2]
[368276123,1751083854957,-155.358054,0.00021885,2]
[368276124,1751083854966,-185.013652,0.00021885,2]
[368276125,1751083854975,-185.013652,0.00021885,2]
[368276126,1751083854985,-151.339772,0.00021885,2]
[368276127,1751083854994,-987.0,0.00021885,2]
[368276128,1751083855004,-3000.0,0.0002189,2]
[368276129,1751083855013,-3000.0,0.000219,2]
[368276130,1751083855022,-3000.0,0.0002191,2]
[368276131,1751083855032,-151.0,0.00021917,2]
[368276132,1751083855041,-151.0,0.00021917,2]
[368276133,1751083855051,-151.0,0.00021917,2]
[368276134,1751083855060,-460.0,0.00021917,2]
[368276135,1751083855070,-151.0,0.00021917,2]
[368276136,1751083855079,-690.39,0.00021917,2]
[368276137,1751083855088,-460.0,0.00021917,2]
[368276138,1751083855098,-897.76,0.00021917,2]
[368276139,1751083855107,-500.0,0.00021917,2]
[368276140,1751083855116,-500.0,0.00021917,2]
[368276141,1751083855125,-500.0,0.00021917,2]
[368276142,1751083855134,-500.0,0.00021917,2]
[368276143,1751083855149,-500.0,0.00021917,2]
[368276144,1751083855160,-500.0,0.00021917,2]
[368276145,1751083855169,-500.0,0.00021917,2]
[368276146,1751083855178,-500.0,0.00021917,2]
[368276147,1751083855189,-500.0,0.00021917,2]
[368276148,1751083855198,-500.0,0.00021917,2]
[368276149,1751083855207,-364.44463581,0.00021917,2]
[368276150,1751083855217,-460.0,0.00021917,2]
[368276151,1751083855227,-460.0,0.00021917,2]
[368276152,1751083855236,-948.73,0.00021917,2]
[368276153,1751083855246,-460.0,0.00021917,2]
[368276154,1751083855256,-460.0,0.00021917,2]
[368276155,1751083855266,-474.42,0.00021917,2]
[368276156,1751083855276,-3462.2,0.00021917,2]
[368276157,1751083855286,-2755.69,0.00021917,2]
[368276158,1751083855295,-608.2,0.00021917,2]
[368276159,1751083855305,-155.278732,0.00021917,2]
[368276160,1751083855314,-3033.82,0.00021917,2]
[368276161,1751083855323,-151.0,0.00021917,2]
[368276162,1751083855333,-460.0,0.00021917,2]
[368276163,1751083855343,-151.0,0.00021917,2]
[368276164,1751083855352,-898.23,0.00021917,2]
[368276165,1751083855362,-460.0,0.00021917,2]
[368276166,1751083855372,-506.02,0.00021917,2]
[368276167,1751083855381,-2624.72,0.00021917,2]
[368276168,1751083855391,-493.98,0.00021917,2]
[368276169,1751083855400,-612.84,0.00021917,2]
[368276170,1751083855409,-460.0,0.00021917,2]
[368276171,1751083855418,-501.0,0.00021917,2]
[368276172,1751083855427,-486.52,0.00021917,2]
[368276173,1751083855437,-151.0,0.00021917,2]
[368276174,1751083855447,-617.9,0.00021917,2]
[368276175,1751083855456,-460.0,0.00021917,2]
[368276176,1751083855465,-3388.35,0.00021917,2]
[368276177,1751083855475,-151.0,0.00021917,2]
[368276178,1751083855484,-529.12,0.00021917,2]
[368276179,1751083855494,-558.58,0.00021917,2]
[368276180,1751083855504,-1259.06,0.00021917,2]
[368276181,1751083855513,-584.15,0.00021917,2]
[368276182,1751083855522,-153.061573,0.00021917,2]
[368276183,1751083855531,-2605.1,0.00021917,2]
[368276184,1751083855540,-153.061573,0.00021917,2]
[368276185,1751083855549,-934.8,0.00021917,2]
[368276186,1751083855558,-554.83,0.00021917,2]
[368276187,1751083855568,-460.0,0.00021917,2]
[368276188,1751083855577,-437.583507,0.00021917,2]
[368276189,1751083855586,-2802.87,0.00021917,2]
[368276190,1751083855596,-437.583507,0.00021917,2]
[368276191,1751083855606,-460.0,0.00021917,2]
[368276192,1751083855615,-3472.72,0.00021917,2]
[368276193,1751083855624,-2124.18,0.00021917,2]
[368276194,1751083855633,-554.07,0.00021917,2]
[368276195,1751083855642,-4921.64,0.00021917,2]
[368276196,1751083855652,-497.39,0.00021917,2]
[368276197,1751083855661,-1405.03,0.00021917,2]
[368276198,1751083855671,-504.02,0.00021917,2]
[368276199,1751083855679,-460.0,0.00021917,2]
[368276200,1751083855689,-726.37,0.00021917,2]
[368276201,1751083855698,-532.64,0.00021917,2]
[368276202,1751083855707,-650.33,0.00021917,2]
[368276203,1751083855716,-1165.28,0.00021917,2]
[368276204,1751083855725,-1747.26,0.00021917,2]
[368276205,1751083855734,-151.0,0.00021917,2]
[368276206,1751083855743,-464.54,0.00021917,2]
[368276207,1751083855753,-5134.94,0.00021917,2]
[368276208,1751083855762,-460.0,0.00021917,2]
[368276209,1751083855771,-460.0,0.00021917,2]
[368276210,1751083855781,-1018.02,0.00021917,2]
[368276211,1751083855791,-929.35,0.00021917,2]
[368276212,1751083855801,-2403.87,0.00021917,2]
[368276213,1751083855810,-487.07946498,0.00021917,2]
[368276214,1751083855819,-711.06,0.00021917,2]
[368276215,1751083855828,-460.0,0.00021917,2]
[368276216,1751083855837,-570.68,0.00021917,2]
[368276217,1751083855846,-2231.43,0.00021917,2]
[368276218,1751083855856,-705.006109,0.00021917,2]
[368276219,1751083855865,-705.006109,0.00021917,2]
[368276220,1751083855874,-2133.39,0.00021917,2]
[368276221,1751083855883,-151.0,0.00021917,2]
[368276222,1751083855893,-1223.58,0.00021917,2]
[368276223,1751083855902,-1782.38,0.00021917,2]
[368276224,1751083855911,-425.103013,0.00021917,2]
[368276225,1751083855921,-1231.97,0.00021917,2]
[368276226,1751083855931,-523.85,0.00021917,2]
[368276227,1751083855940,-425.103013,0.00021917,2]
[368276228,1751083855950,-282.807743,0.00021917,2]
[368276229,1751083855959,-282.807743,0.00021917,2]
[368276230,1751083855968,-151.0,0.00021917,2]
[368276231,1751083855978,-245.662835,0.00021917,2]
[368276232,1751083855987,-155.60873801,0.00021918,2]
[368276233,1751083855997,-3000.0,0.0002192,2]
[368276234,1751083856006,-3000.0,0.0002193,2]
[368276235,1751083856015,-434.3,0.00021933,4]
[368276236,1751083856024,-9354.90543724,0.00021934,6]
[368276237,1751083856034,-3000.0,0.0002194,2]
[368276238,1751083856043,-151.0,0.0002194,7]
[368276239,1751083856052,-151.0,0.0002194,7]
[368276240,1751083856061,-151.0,0.0002194,7]
[368276241,1751083856071,-215.0738,0.00021942,2]
[368276242,1751083856080,-3000.0,0.0002195,2]
[368276243,1751083856089,-3000.0,0.0002196,2]
[368276244,1751083856099,-3000.0,0.0002197,2]
[368276245,1751083856109,-151.07421235,0.0002197,2]
[368276246,1751083856118,-603.69255256,0.0002197,2]
[368276247,1751083856127,-425.44632569,0.0002197,2]
[368276248,1751083856137,-500.89965485,0.00021973,2]
[368276249,1751083856150,-500.997035,0.00021973,2]
[368276250,1751083856159,-500.0,0.00021973,2]
[368276251,1751083856168,-500.0,0.00021973,2]
[368276252,1751083856177,-500.0,0.00021973,2]
[368276253,1751083856188,-500.0,0.00021973,2]
[368276254,1751083856197,-500.80922268,0.00021973,2]
[368276255,1751083856206,-500.23309575,0.00021973,2]
[368276256,1751083856216,-500.0,0.00021973,2]
[368276257,1751083856226,-500.0,0.00021973,2]
[368276258,1751083856236,-336.91878369,0.00021973,2]
[368276259,1751083856246,-500.0,0.00021973,2]
[368276260,1751083856255,-634.688269,0.00021973,2]
[368276261,1751083856264,-500.0,0.00021973,2]
[368276262,1751083856274,-500.0,0.00021973,2]
[368276263,1751083856372,-500.0,0.00021973,2]
[368276264,1751083856381,-500.0,0.00021973,2]
[368276265,1751083856391,-500.0,0.00021973,2]
[368276266,1751083856400,-500.0,0.00021973,2]
[368276267,1751083856409,-500.0,0.00021973,2]
[368276268,1751083856419,-500.0,0.00021973,2]
[368276269,1751083856428,-500.0,0.00021973,2]
[368276270,1751083856438,-380.90063533,0.00021973,2]
[368276271,1751083856447,-500.0,0.00021973,2]
[368276272,1751083856458,-500.0,0.00021973,2]
[368276273,1751083856467,-275.126174,0.00021973,7]
[368276274,1751083856476,-151.0,0.00021973,7]
[368276275,1751083856485,-321.972904,0.00021973,7]
[368276276,1751083856495,-321.972904,0.00021973,7]
[368276277,1751083856505,-153.052614,0.00021973,7]
[368276278,1751083856515,-151.0,0.00021973,7]
[368276279,1751083856524,-1646.491068,0.00021973,7]
[368276280,1751083856533,-1646.491068,0.00021973,7]
[368276281,1751083856542,-151.0,0.00021973,7]
[368276282,1751083856551,-3000.0,0.0002198,2]
[368276283,1751083856560,-3000.0,0.0002199,2]
[368276284,1751083856570,-59088.99000195,0.00022,7]
[368276285,1751083856585,-257.63357897,0.00022,7]
[368276286,1751083856597,-4845.39638205,0.00022,7]
[368276287,1751083856609,-13002.31351015,0.00022,7]
[368276288,1751083856619,-9154.46,0.00022,7]
[368276289,1751083856628,-194.027989,0.00022,7]
[368276290,1751083856637,-21207.1045687,0.00022,2]
[368276293,1751084103183,3863.0,0.000167,2]
[368276295,1751084290670,222.6864313,0.00018016,2]
[368276296,1751084372745,-371.0,0.00018298,2]
[368276297,1751084388122,297.062967,0.00013699,2]
[368276300,1751084493320,1727.6451658,0.00017898,2]
[368276304,1751084649452,468.13,0.00024658,120]
[368276306,1751084698913,1000.0,0.0002465,120]
[368276309,1751084742933,2444.6678783,0.000181,2]
[368276314,1751084854129,-442.38002507,0.00018298,2]
[368276316,1751084917700,9268.75183802,0.00018,2]
[368276317,1751084923522,1295.15118675,0.00018,2]
[368276318,1751084923545,915.03347844,0.00018,2]
[368276319,1751084923745,265.90965083,0.0001515,20]
[368276371,1751085032410,-1461.74510993,0.00018298,2]
[368276373,1751085032419,-1200.0,0.00018562,2]
[368276375,1751085032428,-300.0,0.00018563,2]
[368276377,1751085032437,-300.0,0.00018563,2]
[368276378,1751085032447,-277.1575349,0.00018563,2]
[368276380,1751085032458,-22.8424651,0.00018563,2]
[368276381,1751085032467,-1538.94892283,0.00018564,2]
[368276395,1751085038278,-917.40057482,0.00018564,2]
[368276396,1751085038291,-22443.65050235,0.00018564,2]
[368276397,1751085038300,-203.9287656,0.00018632,2]
[368276398,1751085038309,-2986.05886188,0.000189,2]
[368276399,1751085038318,-643.71513725,0.00018939,2]
[368276400,1751085038329,-303.73922889,0.0001904,2]
[368276401,1751085038339,-500.0,0.00019166,2]
[368276402,1751085038348,-452.62904467,0.00019166,2]
[368276403,1751085038357,-3214.61227832,0.00019167,2]
[368276404,1751085038387,-33388.00055954,0.00019167,2]
[368276405,1751085038396,-337.48,0.00019168,3]
[368276406,1751085038405,-301.61,0.00019168,3]
[368276407,1751085038415,-245.37,0.00019168,3]
[368276408,1751085038425,-460.0,0.00019178,2]
[368276409,1751085038435,-460.0,0.00019178,2]
[368276410,1751085038445,-460.0,0.00019178,2]
[368276411,1751085038455,-460.0,0.00019178,2]
[368276412,1751085038464,-453.29888166,0.00019178,2]
[368276413,1751085038473,-460.0,0.00019178,2]
[368276414,1751085038482,-471.13022457,0.00019178,2]
[368276415,1751085038491,-460.0,0.00019178,2]
[368276416,1751085038501,-463.82477343,0.00019178,2]
[368276417,1751085038510,-434.38021337,0.00019178,2]
[368276418,1751085038519,-460.0,0.00019178,2]
[368276419,1751085038529,-460.0,0.00019178,2]
[368276420,1751085038538,-436.10912895,0.00019178,2]
[368276421,1751085038547,-210.19701061,0.00019178,2]
[368276422,1751085038556,-462.87197347,0.00019178,2]
[368276423,1751085038566,-460.0,0.00019178,2]
[368276424,1751085038576,-460.0,0.00019178,2]
[368276425,1751085038587,-464.3696369,0.00019178,2]
[368276426,1751085038598,-460.0,0.00019178,2]
[368276427,1751085038608,-448.0,0.00019178,2]
[368276428,1751085038618,-460.0,0.00019178,2]
[368276429,1751085038627,-462.81349475,0.00019178,2]
[368276430,1751085038636,-601.78491215,0.00019178,2]
[368276431,1751085038646,-508.19,0.00019178,2]
[368276432,1751085038656,-460.0,0.00019178,2]
[368276433,1751085038665,-461.68036514,0.00019178,2]
[368276434,1751085038674,-460.0,0.00019178,2]
[368276435,1751085038683,-460.0,0.00019178,2]
[368276436,1751085038693,-460.0,0.00019178,2]
[368276437,1751085038702,-460.0,0.00019178,2]
[368276438,1751085038712,-460.0,0.00019178,2]
[368276439,1751085038721,-666.01,0.00019178,2]
[368276440,1751085038730,-408.42186242,0.00019178,2]
[368276441,1751085038740,-460.0,0.00019178,2]
[368276442,1751085038750,-460.0,0.00019178,2]
[368276443,1751085038759,-460.0,0.00019178,2]
[368276444,1751085038768,-460.0,0.00019178,2]
[368276445,1751085038777,-460.0,0.00019178,2]
[368276446,1751085038787,-460.0,0.00019178,2]
[368276447,1751085038795,-460.0,0.00019178,2]
[368276448,1751085038805,-492.18068525,0.00019178,2]
[368276449,1751085038814,-460.0,0.00019178,2]
[368276450,1751085038823,-460.0,0.00019178,2]
[368276451,1751085038832,-460.0,0.00019178,2]
[368276452,1751085038841,-460.0,0.00019178,2]
[368276453,1751085038851,-415.94,0.00019178,2]
[368276454,1751085038860,-460.0,0.00019178,2]
[368276455,1751085038869,-526.17548705,0.00019178,2]
[368276456,1751085038878,-460.0,0.00019178,2]
[368276457,1751085038887,-729.39,0.00019178,2]
[368276458,1751085038897,-285.94748537,0.00019178,2]
[368276459,1751085038906,-460.0,0.00019178,2]
[368276460,1751085038915,-460.72701073,0.00019178,2]
[368276461,1751085038924,-460.0,0.00019178,2]
[368276462,1751085038935,-348.43348095,0.00019178,2]
[368276463,1751085038944,-460.0,0.00019178,2]
[368276464,1751085038955,-460.0,0.00019178,2]
[368276465,1751085038965,-500.0,0.00019178,2]
[368276466,1751085038974,-500.0,0.00019178,2]
[368276467,1751085038983,-500.0,0.00019178,2]
[368276468,1751085038992,-460.0,0.00019178,2]
[368276469,1751085039001,-460.88431684,0.00019178,2]
[368276470,1751085039011,-460.0,0.00019178,2]
[368276471,1751085039020,-460.0,0.00019178,2]
[368276472,1751085039031,-460.0,0.00019178,2]
[368276473,1751085039040,-460.0,0.00019178,2]
[368276474,1751085039049,-460.0,0.00019178,2]
[368276475,1751085039059,-460.0,0.00019178,2]
[368276476,1751085039068,-460.0,0.00019178,2]
[368276477,1751085039077,-460.0,0.00019178,2]
[368276478,1751085039086,-460.0,0.00019178,2]
[368276479,1751085039095,-2594.14,0.00019178,2]
[368276480,1751085039104,-2386.93,0.00019178,2]
[368276481,1751085039113,-584.03,0.00019178,2]
[368276482,1751085039122,-460.0,0.00019178,2]
[368276483,1751085039131,-460.0,0.00019178,2]
[368276484,1751085039140,-460.0,0.00019178,2]
[368276485,1751085039149,-672.73,0.00019178,2]
[368276486,1751085039158,-462.16,0.00019178,2]
[368276487,1751085039168,-460.0,0.00019178,2]
[368276488,1751085039178,-335.97577338,0.00019178,2]
[368276489,1751085039188,-461.57204464,0.00019178,2]
[368276490,1751085039197,-262.73755337,0.00019178,2]
[368276491,1751085039206,-1138.53,0.00019178,2]
[368276492,1751085039217,-460.0,0.00019178,2]
[368276493,1751085039226,-460.0,0.00019178,2]
[368276494,1751085039235,-460.0,0.00019178,2]
[368276495,1751085039248,-460.0,0.00019178,2]
[368276496,1751085039259,-460.0,0.00019178,2]
[368276497,1751085039268,-460.0,0.00019178,2]
[368276498,1751085039277,-460.0,0.00019178,2]
[368276499,1751085039286,-460.0,0.00019178,2]
[368276500,1751085039295,-460.0,0.00019178,2]
[368276501,1751085039304,-460.0,0.00019178,2]
[368276502,1751085039313,-460.0,0.00019178,2]
[368276503,1751085039323,-1997.11,0.00019178,2]
[368276504,1751085039335,-460.0,0.00019178,2]
[368276505,1751085039345,-284.05653896,0.00019178,2]
[368276506,1751085039356,-460.0,0.00019178,2]
[368276507,1751085039366,-1957.89,0.00019178,2]
[368276508,1751085039375,-250.23960688,0.00019178,2]
[368276509,1751085039384,-460.0,0.00019178,2]
[368276510,1751085039394,-460.0,0.00019178,2]
[368276511,1751085039403,-460.0,0.00019178,2]
[368276512,1751085039412,-464.40722316,0.00019178,2]
[368276513,1751085039421,-460.0,0.00019178,2]
[368276514,1751085039430,-460.0,0.00019178,2]
[368276515,1751085039439,-460.0,0.00019178,2]
[368276516,1751085039448,-460.0,0.00019178,2]
[368276517,1751085039458,-2555.1,0.00019178,2]
[368276518,1751085039467,-460.0,0.00019178,2]
[368276519,1751085039477,-500.0,0.00019178,2]
[368276520,1751085039486,-500.0,0.00019178,2]
[368276521,1751085039495,-626.01,0.00019178,2]
[368276522,1751085039504,-395.90325592,0.00019178,2]
[368276523,1751085039513,-945.23,0.00019178,2]
[368276524,1751085039522,-576.1725386,0.00019178,2]
[368276525,1751085039532,-463.46863347,0.00019178,2]
[368276526,1751085039541,-2959.3,0.00019178,2]
[368276527,1751085039550,-460.0,0.00019178,2]
[368276528,1751085039560,-4178.89,0.00019178,2]
[368276529,1751085039569,-460.0,0.00019178,2]
[368276530,1751085039708,-396.80810749,0.00019178,2]
[368276532,1751085039719,-460.0,0.00019178,2]
[368276534,1751085039728,-431.83149627,0.00019178,2]
[368276535,1751085039738,-507.76737903,0.00019178,2]
[368276536,1751085039748,-460.0,0.00019178,2]
[368276537,1751085039759,-460.0,0.00019178,2]
[368276538,1751085039768,-460.0,0.00019178,2]
[368276539,1751085039777,-156.55555328,0.00019178,2]
[368276540,1751085039786,-929.77,0.00019178,2]
[368276541,1751085039796,-748.96,0.00019178,2]
[368276542,1751085039805,-517.34,0.00019178,2]
[368276543,1751085039814,-2230.94,0.00019178,2]
[368276544,1751085039823,-435.2394353,0.00019178,2]
[368276545,1751085039832,-1772.49,0.00019178,2]
[368276546,1751085039841,-1368.73,0.00019178,2]
[368276547,1751085039851,-460.0,0.00019178,2]
[368276548,1751085039860,-563.94,0.00019178,2]
[368276549,1751085039869,-460.0,0.00019178,2]
[368276550,1751085039878,-460.0,0.00019178,2]
[368276551,1751085039887,-460.0,0.00019178,2]
[368276552,1751085039897,-460.0,0.00019178,2]
[368276553,1751085039906,-460.0,0.00019178,2]
[368276554,1751085039915,-235.90785767,0.00019178,2]
[368276555,1751085039924,-532.59961817,0.00019178,2]
[368276556,1751085039934,-740.09,0.00019178,2]
[368276557,1751085039943,-430.31385132,0.00019178,2]
[368276558,1751085039952,-1825.1,0.00019178,2]
[368276559,1751085039962,-547.99322723,0.00019178,2]
[368276560,1751085039971,-460.0,0.00019178,2]
[368276561,1751085039980,-460.0,0.00019178,2]
[368276562,1751085039990,-567.91,0.00019178,2]
[368276563,1751085039999,-460.0,0.00019178,2]
[368276564,1751085040008,-4347.56,0.00019178,2]
[368276565,1751085040017,-460.0,0.00019178,2]
[368276566,1751085040026,-1456.68,0.00019178,2]
[368276568,1751085040035,-520.9462463,0.00019178,2]
[368276569,1751085040044,-166.76932862,0.00019178,2]
[368276570,1751085040054,-460.0,0.00019178,2]
[368276571,1751085040063,-460.0,0.00019178,2]
[368276572,1751085040072,-460.0,0.00019178,2]
[368276573,1751085040082,-460.0,0.00019178,2]
[368276574,1751085040091,-460.0,0.00019178,2]
[368276575,1751085040100,-460.0,0.00019178,2]
[368276576,1751085040109,-460.0,0.00019178,2]
[368276577,1751085040118,-460.0,0.00019178,2]
[368276578,1751085040128,-460.0,0.00019178,2]
[368276579,1751085040137,-460.0,0.00019178,2]
[368276580,1751085040146,-460.0,0.00019178,2]
[368276581,1751085040156,-973.88,0.00019178,2]
[368276582,1751085040165,-980.96,0.00019178,2]
[368276583,1751085040174,-833.07,0.00019178,2]
[368276584,1751085040184,-460.0,0.00019178,2]
[368276585,1751085040194,-1723.66,0.00019178,2]
[368276586,1751085040204,-461.14352202,0.00019178,2]
[368276587,1751085040216,-460.0,0.00019178,2]
[368276588,1751085040225,-460.0,0.00019178,2]
[368276589,1751085040234,-460.0,0.00019178,2]
[368276590,1751085040245,-460.0,0.00019178,2]
[368276592,1751085040258,-460.0,0.00019178,2]
[368276593,1751085040267,-460.0,0.00019178,2]
[368276594,1751085040275,-1643.37,0.00019178,2]
[368276595,1751085040284,-2082.61,0.00019178,2]
[368276596,1751085040294,-302.34670193,0.00019178,2]
[368276597,1751085040303,-460.0,0.00019178,2]
[368276598,1751085040313,-385.082178,0.00019178,2]
[368276599,1751085040323,-736.12,0.00019442,3]
[368276600,1751085040333,-460.0,0.00019452,2]
[368276601,1751085040343,-460.0,0.00019452,2]
[368276602,1751085040352,-460.0,0.00019452,2]
[368276603,1751085040361,-460.0,0.00019452,2]
[368276604,1751085040370,-466.14377587,0.00019452,2]
[368276605,1751085040379,-508.19,0.00019452,2]
[368276606,1751085040390,-460.0,0.00019452,2]
[368276607,1751085040399,-460.0,0.00019452,2]
[368276608,1751085040408,-497.47469581,0.00019452,2]
[368276609,1751085040417,-460.0,0.00019452,2]
[368276611,1751085040427,-666.01,0.00019452,2]
[368276612,1751085040436,-460.0,0.00019452,2]
[368276613,1751085040446,-460.0,0.00019452,2]
[368276614,1751085040455,-460.0,0.00019452,2]
[368276615,1751085040464,-444.90002104,0.00019452,2]
[368276616,1751085040473,-460.0,0.00019452,2]
[368276617,1751085040483,-460.0,0.00019452,2]
[368276618,1751085040493,-460.0,0.00019452,2]
[368276619,1751085040502,-729.39,0.00019452,2]
[368276620,1751085040511,-460.0,0.00019452,2]
[368276621,1751085040520,-487.76071805,0.00019452,2]
[368276622,1751085040529,-460.0,0.00019452,2]
[368276623,1751085040539,-460.0,0.00019452,2]
[368276624,1751085040549,-460.0,0.00019452,2]
[368276625,1751085040558,-460.0,0.00019452,2]
[368276626,1751085040568,-460.0,0.00019452,2]
[368276627,1751085040578,-460.0,0.00019452,2]
[368276628,1751085040587,-460.0,0.00019452,2]
[368276629,1751085040597,-460.0,0.00019452,2]
[368276630,1751085040607,-460.0,0.00019452,2]
[368276631,1751085040616,-460.0,0.00019452,2]
[368276632,1751085040625,-2594.14,0.00019452,2]
[368276633,1751085040635,-2386.93,0.00019452,2]
[368276634,1751085040644,-584.03,0.00019452,2]
[368276635,1751085040653,-460.0,0.00019452,2]
[368276636,1751085040663,-460.0,0.00019452,2]
[368276637,1751085040672,-672.73,0.00019452,2]
[368276638,1751085040681,-462.16,0.00019452,2]
[368276639,1751085040691,-460.0,0.00019452,2]
[368276640,1751085040700,-1138.53,0.00019452,2]
[368276641,1751085040709,-460.0,0.00019452,2]
[368276642,1751085040718,-460.0,0.00019452,2]
[368276643,1751085040727,-460.0,0.00019452,2]
[368276644,1751085040737,-460.0,0.00019452,2]